[Event "WWRR IM-Group 2024"]
[Site "Wachtebeke"]
[Date "2024.02.12"]
[Round "4.3"]
[White "Ochs, Daniel Elias"]
[Black "De Waele, Warre"]
[Result "0-1"]
[ECO "D12"]
[WhiteElo "2280"]
[BlackElo "2345"]
[Annotator "TA"]
[PlyCount "108"]
[EventDate "2024.02.12"]
[EventType "tourn"]
[EventCountry "BEL"]
[SourceTitle "playchess.com"]
[Source "ChessBase"]
[SourceQuality "1"]
[TimeControl "40/5400+30:900+30"]

{[%evp 12,108,27,16,39,7,18,0,12,5,25,-125,-108,-126,-131,-166,-180,-194,-186,-241,-231,-218,-234,-241,-216,-212,-213,-225,-226,-229,-200,-252,-253,-252,-243,-252,-242,-245,-238,-255,-255,-249,-216,-268,-262,-272,-256,-272,-255,-269,-259,-268,-256,-281,-290,-305,-299,-307,-300,-333,-326,-418,-347,-349,-341,-495,-473,-530,-531,-530,-536,-518,-514,-556,-544,-540,-539,-646,-631,-664,-633,-660,-635,-714,-713,-708,-697,-679,-625,-611,-552,-940,-918,-2001,-825,-1022,-981,-29956,-6420]} 1. d4 d5 2. c4 c6 3. Nf3 Nf6 4. e3 Bf5 5. Nc3 e6 6. Nh4 Be4 7. f3 Bg6 8. Nxg6 hxg6 9. Qb3 Qc7 {The position is equal.} 10. g3 Be7 11. Bg2 {[#]} (11. cxd5 $11 cxd5 12. Bd3) 11... dxc4 $1 $17 12. Qxc4 {[#]} Rxh2 $3 {[%mdl 512]} 13. Rxh2 (13. Kf2 Rxh1) 13... Qxg3+ 14. Kf1 Qxh2 15. Bd2 (15. Qb3 {might work better.} Qc7 16. f4) 15... Nbd7 $19 16. Ne2 Nh5 17. Rd1 Ng3+ 18. Nxg3 Qxg3 19. b4 Nb6 20. Qe2 a6 21. Be1 Qg5 22. a3 Qb5 23. Rc1 Nd5 24. Bd2 O-O-O 25. Qxb5 axb5 26. Kf2 Rh8 27. Rc2 Kd7 28. Bc1 Bf6 29. Kg1 Ne7 30. Bf1 Nf5 31. Kg2 Bg5 32. f4 Be7 33. Rf2 Nd6 34. Bd3 f5 35. Kg1 g5 36. Rg2 g4 37. Re2 Bf6 38. Kg2 (38. Rh2 {was necessary.} Rxh2 39. Kxh2) 38... Rh3 39. Kg1 Bxd4 40. Re1 Bf6 41. Bf1 Rh8 42. Bd3 g6 43. Kg2 Ke7 44. e4 fxe4 45. Bxe4 Nxe4 46. Rxe4 {[%mdl 4096] Endgame. KRB-KRB} Rh3 47. Be3 Kd6 {...Kd5 is the strong threat.} 48. Bc5+ Kd5 49. Re2 Rd3 {Repels Rd2} 50. Ra2 Bd4 51. Be7 Ke4 52. Re2+ Kf5 53. Bd6 Be3 54. Be5 {[%emt 0:43:28]} Rd2 {[%emt 0:41:35] White got outplayed after the opening.   Weighted Error Value: White=0.31/Black=0.07 (flawless) .  Mistake:       	White=3     	---        Inaccurate:     	White=2     	---        OK:         	White=6     	Black=16     Best:        	White=1     	Black=1      Strong:       	---       	Black=1      Brilliant:      	---       	Black=1} 0-1

[Event "WWRR IM-Group 2024"]
[Site "Wachtebeke"]
[Date "2024.02.12"]
[Round "4.4"]
[White "Hauchamps, Maxime"]
[Black "Van Cappellen, Jonas"]
[Result "0-1"]
[ECO "A13"]
[WhiteElo "2267"]
[BlackElo "2212"]
[Annotator "RC"]
[PlyCount "74"]
[EventDate "2024.02.12"]
[EventType "tourn"]
[EventCountry "BEL"]
[SourceTitle "playchess.com"]
[Source "ChessBase"]
[SourceQuality "1"]
[TimeControl "40/5400+30:900+30"]

1. Nf3 {[%emt 0:00:04]} Nf6 {[%emt 0:01:41]} 2. c4 {[%emt 0:00:07]} c5 {[%emt 0:00:07]} 3. e3 {[%emt 0:01:06]} e6 {[%emt 0:00:12]} 4. b3 {[%emt 0:01:11]} Nc6 {[%emt 0:00:56]} 5. Bb2 {[%emt 0:00:42]} d5 {[%emt 0:00:18]} 6. cxd5 {[%emt 0:00:21]} exd5 {[%emt 0:00:11]} 7. Be2 {[%emt 0:00:09]} Bd6 {[%emt 0:01:35]} 8. O-O {[%emt 0:00:22]} O-O {[%emt 0:00:08]} 9. Nc3 {[%emt 0:00:43]} Re8 {[%emt 0:01:24]} 10. Rc1 {[%emt 0:00:56]} Bd7 {[%emt 0:16:42]} 11. d4 {[%emt 0:06:29]} cxd4 {[%emt 0:01:00]} 12. Nb5 {[%emt 0:01:04]} Bb8 {[%emt 0:01:42]} 13. Nbxd4 {[%emt 0:01:12]} Ne4 {[%emt 0:04:08]} 14. Bb5 {[%emt 0:20:53]} Qb6 {[%emt 0:14:02]} 15. Qe2 {[%emt 1:02:41]} a6 {[%emt 0:08:06]} 16. Bxc6 {[%emt 0:00:00]} bxc6 {[%emt 0:00:16]} 17. Nh4 {[%emt 0:00:00]} g6 {[%emt 0:06:59]} 18. g3 {[%emt 0:00:00]} c5 {[%emt 0:04:22]} 19. Ndf3 {[%emt 0:00:00]} Bb5 {[%emt 0:02:59]} 20. Qd1 {[%emt 0:00:00]} Bxf1 {[%emt 0:00:54]} 21. Qxf1 {[%emt 0:00:00]} Qe6 {[%emt 0:02:33]} 22. Ng2 {[%emt 0:00:00]} g5 {[%emt 0:01:10]} 23. h4 {[%emt 0:00:00]} h6 {[%emt 0:00:41]} 24. Qe2 {[%emt 0:00:00]} Ba7 {[%emt 0:06:32]} 25. Nge1 {[%emt 0:00:00]} Rad8 {[%emt 0:01:30]} 26. Nd3 {[%emt 0:00:00]} f6 {[%emt 0:03:06]} 27. Kg2 {[%emt 0:00:00]} d4 {[%emt 0:03:52]} 28. exd4 {[%emt 0:00:00]} cxd4 {[%emt 0:00:09]} 29. Rc4 {[%emt 0:00:00]} Nc3 {[%emt 0:12:45]} 30. Qc2 {[%emt 0:00:00]} g4 {[%emt 0:01:21]} 31. Nd2 {[%emt 0:00:01]} Qd5+ {[%emt 0:00:35]} 32. Kh2 {[%emt 0:01:04]} Qf5 {[%emt 0:01:24]} 33. Rc7 {[%emt 0:00:53]} Re2 {[%emt 0:01:21]} 34. Rxa7 {[%emt 0:00:20]} Rxf2+ {[%emt 0:00:09]} 35. Kg1 {[%emt 0:00:02]} Ne2+ {[%emt 0:00:13]} 36. Kh1 {[%emt 0:00:11]} Qd5+ {[%emt 0:00:13]} 37. Nf3 {[%emt 0:00:13]} Qxf3# {[%emt 0:00:07]} 0-1

[Event "WWRR IM-Group 2024"]
[Site "Wachtebeke"]
[Date "2024.02.12"]
[Round "4.5"]
[White "Gloeckler, Christian"]
[Black "Milliet, Sophie"]
[Result "1/2-1/2"]
[ECO "C70"]
[WhiteElo "2354"]
[BlackElo "2384"]
[Annotator "TA"]
[PlyCount "55"]
[EventDate "2024.02.12"]
[EventType "tourn"]
[EventCountry "BEL"]
[SourceTitle "playchess.com"]
[Source "ChessBase"]
[SourceQuality "1"]
[TimeControl "40/5400+30:900+30"]

{[%evp 9,55,33,48,17,22,30,19,-18,20,0,39,0,0,0,-12,-6,-10,0,0,0,37,0,0,0,0,0,35,0,0,-26,-15,-12,0,-8,-8,-26,0,-52,41,-20,0,0,0,0,0,0,0,0]} 1. e4 {[%emt 0:00:02]} e5 {[%emt 0:00:08]} 2. Nf3 {[%emt 0:00:35]} Nc6 {[%emt 0:00:04]} 3. Bb5 {[%emt 0:00:26]} a6 {[%emt 0:00:04]} 4. Ba4 {[%emt 0:00:26]} Nge7 {[%emt 0:00:05]} 5. c3 {[%emt 0:01:33]} f6 {[%emt 0:00:22]} 6. O-O {[%emt 0:01:09]} d5 {[%emt 0:00:11]} 7. exd5 {[%emt 0:02:48]} Qxd5 {[%emt 0:00:12]} 8. Bb3 {[%emt 0:06:52]} Qd3 {[%emt 0:00:14]} 9. Bc2 {[%emt 0:01:45]} Qd6 {[%emt 0:03:44]} 10. d4 {[%emt 0:04:18]} (10. Re1 $14) 10... exd4 $11 {[%emt 0:02:07]} 11. Nxd4 {[%emt 0:01:56]} Nxd4 {[%emt 0:00:48]} 12. cxd4 {[%emt 0:00:23]} Be6 {[%emt 0:01:21]} 13. Re1 {[%emt 0:05:51]} O-O-O {[%emt 0:00:52][%cal Oe7c6]} 14. Nc3 {[%emt 0:00:53][%cal Oc1f4]} Bf5 {[%emt 0:09:47]} (14... Kb8 $5) 15. Be3 {[%emt 0:20:06]} Bxc2 {[%emt 0:13:59]} 16. Qxc2 {[%emt 0:00:03]} Nd5 {[%emt 0:01:03]} 17. Rac1 {[%emt 0:05:40] [#] aiming for Nxd5.} c6 {[%emt 0:01:19]} 18. a3 {[%emt 0:06:47]} (18. Bd2 {simplifies} Kb8 19. Qb3 g5 20. Nxd5 Qxd5 21. Qxd5 Rxd5 22. Re8+) 18... h5 {[%emt 0:21:47]} 19. Na4 {[%emt 0:10:04]} Qc7 {[%emt 0:02:27]} 20. Bd2 {[%emt 0:05:07]} h4 {[%emt 0:03:03]} (20... Kb8 {simplifies} 21. Nc5 Qf7 22. a4 Bxc5 23. dxc5 g5) 21. h3 {[%emt 0:01:15]} Bd6 {[%emt 0:09:50]} 22. Qg6 {[%emt 0:04:40]} Kb8 {[%emt 0:04:02]} 23. b4 {[%emt 0:02:09]} ({Better is} 23. Nc5 $11 Bxc5 24. dxc5) 23... Qd7 {[%emt 0:05:15]} (23... Bf4 $15 24. Qc2 Bxd2 25. Qxd2 Qf7) 24. Re4 {[%emt 0:01:36]} ({White should try} 24. Nc5 $14 Bxc5 25. bxc5 (25. dxc5 Ka7 $14)) 24... f5 {[%emt 0:04:14] The position is equal.} (24... Ne7 $5 25. Qf7 $8 (25. Qxg7 $2 {too greedy.} Rhg8 $19) 25... Nf5 $11) 25. Re6 {[%emt 0:05:08][%cal Oc1e1]} f4 {[%emt 0:02:02] [#] ...Rh6 is the strong threat.} 26. Rce1 {[%emt 0:02:09]} Rh6 {[%emt 0:01:58]} 27. Qg4 {[%emt 0:00:58]} Rxe6 {[%emt 0:00:30]} 28. Rxe6 {[%emt 0:01:25] A rather calm draw.   Weighted Error Value: White=0.17 (very precise) /Black=0.15 (very precise) .  Mistake:       	White=3     	Black=1      Inaccurate:     	White=4     	Black=4      OK:         	White=9     	Black=10     Best:        	---       	Black=2} 1/2-1/2

[Event "WWRR IM-Group 2024"]
[Site "Wachtebeke"]
[Date "2024.02.12"]
[Round "5.1"]
[White "Milliet, Sophie"]
[Black "Leenhouts, Koen"]
[Result "1/2-1/2"]
[ECO "B42"]
[WhiteElo "2384"]
[BlackElo "2433"]
[Annotator "TA"]
[PlyCount "30"]
[EventDate "2024.02.12"]
[EventType "tourn"]
[EventCountry "BEL"]
[SourceTitle "playchess.com"]
[Source "ChessBase"]
[SourceQuality "1"]
[TimeControl "40/5400+30:900+30"]

{[%evp 16,30,37,20,30,31,31,31,23,32,35,27,25,19,20,23,29]} 1. e4 {[%emt 0:00:05]} c5 {[%emt 0:00:05]} 2. Nf3 {[%emt 0:00:05]} e6 {[%emt 0:00:07]} 3. d4 {[%emt 0:00:52]} cxd4 {[%emt 0:00:07]} 4. Nxd4 {[%emt 0:00:03]} a6 {[%emt 0:00:07]} 5. Bd3 {[%emt 0:00:27]} Bc5 {[%emt 0:00:09]} 6. Nb3 {[%emt 0:00:16]} Ba7 {[%emt 0:00:07]} 7. Qe2 {[%emt 0:02:36]} Nc6 {[%emt 0:02:45]} 8. Be3 {[%emt 0:00:49]} Nge7 {[%emt 0:01:08]} 9. O-O {[%emt 0:13:48]} O-O {[%emt 0:02:02]} 10. c4 {[%emt 0:03:29]} d6 {[%emt 0:06:42]} 11. Nc3 {[%emt 0:00:37]} e5 {[%emt 0:02:31] White is slightly better.} 12. Bxa7 {[%emt 0:00:26]} Rxa7 {[%emt 0:00:14]} 13. Qe3 {[%emt 0:00:41]} Be6 {[%emt 0:04:32]} 14. Rfd1 {[%emt 0:00:51]} Qb8 {[%emt 0:05:09]} 15. Rac1 {[%emt 0:28:01]} b6 {[%emt 0:03:17] Weighted Error Value: White=0.04 (flawless) /Black=0.02 (flawless) .  OK:         	White=2     	Black=3} 1/2-1/2

[Event "WWRR IM-Group 2024"]
[Site "Wachtebeke"]
[Date "2024.02.12"]
[Round "5.2"]
[White "Van Cappellen, Jonas"]
[Black "Gloeckler, Christian"]
[Result "0-1"]
[ECO "A11"]
[WhiteElo "2212"]
[BlackElo "2354"]
[Annotator "TA"]
[PlyCount "56"]
[EventDate "2024.02.12"]
[EventType "tourn"]
[EventCountry "BEL"]
[SourceTitle "playchess.com"]
[Source "ChessBase"]
[SourceQuality "1"]
[TimeControl "40/5400+30:900+30"]

{[%evp 10,56,10,8,20,-18,-16,-31,-30,-49,-32,-43,-27,-52,-54,-55,-49,-48,-33,-81,-81,-81,-81,-98,-95,-140,-106,-114,-88,-164,-133,-214,-225,-215,-181,-285,-262,-1185,-1514,-1513,-1516,-1349,-1280,-1237,-1197,-1711,-1252,-29983,-29984]} 1. Nf3 {[%emt 0:00:04]} d5 {[%emt 0:00:22]} 2. e3 {[%emt 0:00:10]} Nf6 {[%emt 0:00:27]} 3. c4 {[%emt 0:00:11]} e6 {[%emt 0:00:20][%cal Be7e6,Be6e5,Be5e4][%mdl 32]} 4. Nc3 {[%emt 0:00:10]} c6 {[%emt 0:01:26]} 5. b3 {[%emt 0:01:13]} Nbd7 {[%emt 0:02:01]} 6. Bb2 {[%emt 0:00:14]} e5 {[%emt 0:04:37]} 7. cxd5 {[%emt 0:05:08]} cxd5 {[%emt 0:00:26]} 8. d4 {[%emt 0:06:35]} e4 {[%emt 0:01:47] Black is slightly better.} 9. Ne5 {[%emt 0:04:22]} a6 {[%emt 0:04:00]} 10. Be2 {[%emt 0:12:37]} Bd6 {[%emt 0:02:56]} 11. Nxd7 {[%emt 0:10:12]} Bxd7 {[%emt 0:00:23]} 12. O-O {[%emt 0:03:24]} h5 {[%emt 0:10:32][%cal Od6h2] [#] ...Bxh2+! would now be deadly.} 13. f4 {[%emt 0:03:12]} Ng4 {[%emt 0:09:41]} 14. Bxg4 {[%emt 0:02:02]} ({But not} 14. Nxd5 Bc6 15. h3 (15. Bxg4 $2 hxg4 $19) 15... Bxd5 $17) (14. Qd2 $15) 14... hxg4 $17 {[%emt 0:00:22]} ({Reject} 14... Bxg4 15. Qe1 $11) 15. g3 {[%emt 0:02:01] Prevents Qh4} (15. Nxd5 $2 {too greedy.} Qh4 16. Qc2 Qxh2+ 17. Kf2 Qh4+ 18. Ke2 Bb5+ 19. Kd2 Qg3 20. Qxe4+ Kf8 $19) 15... Rh5 {[%emt 0:01:25] White is weak on the light squares} 16. Nb1 {[%emt 0:04:07]} b5 {[%emt 0:03:13] Black is much more active. The white rooks are passive.} 17. Qd2 {[%emt 0:00:23]} a5 {[%emt 0:05:09]} 18. Nc3 {[%emt 0:05:05][%cal Of4f5]} b4 {[%emt 0:04:44]} 19. Ne2 {[%emt 0:00:42]} (19. Na4 $17) 19... Ke7 {[%emt 0:05:34]} 20. a4 {[%emt 0:00:49]} (20. a3 $17) 20... Qh8 $19 {[%emt 0:02:13]} 21. Rf2 {[%emt 0:00:22]} Rh3 {[%emt 0:01:54]} 22. Rc1 {[%emt 0:00:26]} (22. f5 $142) 22... Qh6 {[%emt 0:02:01] [#] aiming for ...Rh8.} 23. Rc5 $2 {[%emt 0:06:08]} (23. Rg2) 23... Rh8 {[%emt 0:01:16][%cal Rh3h2]} 24. Kf1 {[%emt 0:03:38]} Rxh2 {[%emt 0:01:39]} 25. Ng1 {[%emt 0:00:41]} Bxc5 {[%emt 0:03:38]} 26. dxc5 {[%emt 0:00:14]} Qa6+ {[%emt 0:00:09]} 27. Re2 {[%emt 0:03:12]} Qd3 {[%emt 0:00:41]} 28. Ke1 {[%emt 0:01:17]} Rxe2+ {[%emt 0:00:42] White got outplayed after the opening.   Weighted Error Value: White=1.05/Black=0.07 (flawless) .  Mistake:       	White=5     	---        Inaccurate:     	White=2     	---        OK:         	White=4     	Black=6      Best:        	---       	Black=2} 0-1

[Event "WWRR IM-Group 2024"]
[Site "Wachtebeke"]
[Date "2024.02.12"]
[Round "5.3"]
[White "De Waele, Warre"]
[Black "Hauchamps, Maxime"]
[Result "1-0"]
[ECO "D73"]
[WhiteElo "2345"]
[BlackElo "2267"]
[Annotator "RC"]
[PlyCount "165"]
[EventDate "2024.02.12"]
[EventType "tourn"]
[EventCountry "BEL"]
[SourceTitle "playchess.com"]
[Source "ChessBase"]
[SourceQuality "1"]
[TimeControl "40/5400+30:900+30"]

1. d4 {[%emt 0:00:05]} d5 {[%emt 0:00:07]} 2. c4 {[%emt 0:00:27]} c6 {[%emt 0:00:07]} 3. Nf3 {[%emt 0:00:06]} Nf6 {[%emt 0:00:06]} 4. g3 {[%emt 0:00:49]} g6 {[%emt 0:00:08]} 5. Bg2 {[%emt 0:00:11]} Bg7 {[%emt 0:00:28]} 6. O-O {[%emt 0:00:15]} dxc4 {[%emt 0:00:13]} 7. a4 {[%emt 0:01:13]} Ne4 {[%emt 0:00:14]} 8. Nc3 {[%emt 0:00:07]} Nd6 {[%emt 0:05:14]} 9. e4 {[%emt 0:02:02]} Bg4 {[%emt 0:00:15]} 10. Be3 {[%emt 0:05:25]} Na6 {[%emt 0:05:45]} 11. h3 {[%emt 0:11:00]} Bxf3 {[%emt 0:02:39]} 12. Qxf3 {[%emt 0:00:06]} Nb4 {[%emt 0:04:40]} 13. Qe2 {[%emt 0:05:37]} a5 {[%emt 0:08:02]} 14. f4 {[%emt 0:06:05]} Nd3 {[%emt 0:11:42]} 15. g4 {[%emt 0:03:10]} Ra6 {[%emt 0:09:49]} 16. e5 {[%emt 0:03:02]} Rb6 {[%emt 0:00:33]} 17. Rab1 {[%emt 0:02:35]} Rb3 {[%emt 0:03:45]} 18. exd6 {[%emt 0:03:43]} Qxd6 {[%emt 0:00:58]} 19. Ne4 {[%emt 0:02:36]} Qb4 {[%emt 0:03:27]} 20. Nd2 {[%emt 0:10:26]} Rxb2 {[%emt 0:01:08]} 21. Be4 {[%emt 0:04:30]} Qc3 {[%emt 0:06:58]} 22. Bxd3 {[%emt 0:02:13]} cxd3 {[%emt 0:00:07]} 23. Qf2 {[%emt 0:00:16]} O-O {[%emt 0:04:11]} 24. Rxb2 {[%emt 0:03:24]} Qxb2 {[%emt 0:00:26]} 25. Rb1 {[%emt 0:01:04]} Qa2 {[%emt 0:00:58]} 26. Rxb7 {[%emt 0:00:26]} Qxa4 {[%emt 0:00:48]} 27. Nf3 {[%emt 0:08:50]} Ra8 {[%emt 0:01:57]} 28. Qb2 {[%emt 0:01:48]} Qd1+ {[%emt 0:00:59]} 29. Kg2 {[%emt 0:00:24]} a4 {[%emt 0:00:42]} 30. f5 {[%emt 0:06:29]} Bf8 {[%emt 0:04:25]} 31. Qd2 {[%emt 0:02:22]} Qe2+ {[%emt 0:05:13]} 32. Qxe2 {[%emt 0:00:33]} dxe2 {[%emt 0:00:01]} 33. Bd2 {[%emt 0:02:36]} a3 {[%emt 0:03:40]} 34. Bc3 {[%emt 0:00:05]} a2 {[%emt 0:03:16]} 35. Ba1 {[%emt 0:00:06]} Ra3 {[%emt 0:00:05]} 36. Ne1 {[%emt 0:01:24]} gxf5 {[%emt 0:00:01]} 37. gxf5 {[%emt 0:01:32]} Ra5 {[%emt 0:00:05]} 38. Rb2 {[%emt 0:00:52]} Rxf5 {[%emt 0:00:11]} 39. Rxa2 {[%emt 0:00:43]} c5 {[%emt 0:01:06]} 40. Rxe2 {[%emt 0:00:28]} cxd4 {[%emt 0:02:11]} 41. Bxd4 {[%emt 0:15:08]} f6 {[%emt 0:16:03]} 42. Nf3 {[%emt 0:00:05]} Rb5 {[%emt 0:01:02]} 43. Kg3 {[%emt 0:04:05]} Kf7 {[%emt 0:02:14]} 44. Bb2 {[%emt 0:00:37]} Rb4 {[%emt 0:00:44]} 45. Ba3 {[%emt 0:00:40]} Ra4 {[%emt 0:00:42]} 46. Bc5 {[%emt 0:00:16]} Rc4 {[%emt 0:01:12]} 47. Ba3 {[%emt 0:01:00]} Ra4 {[%emt 0:00:54]} 48. Re3 {[%emt 0:00:28]} Ra7 {[%emt 0:01:56]} 49. Bb4 {[%emt 0:01:43]} Ra4 {[%emt 0:00:21]} 50. Bc5 {[%emt 0:00:21]} Rc4 {[%emt 0:00:10]} 51. Ba3 {[%emt 0:00:23]} Ra4 {[%emt 0:00:30]} 52. Nh4 {[%emt 0:01:01]} Ra5 {[%emt 0:00:36]} 53. Rf3 {[%emt 0:01:27]} Ke6 {[%emt 0:01:54]} 54. Kf2 {[%emt 0:02:41]} Rb5 {[%emt 0:01:03]} 55. Re3+ {[%emt 0:01:39]} Kf7 {[%emt 0:00:07]} 56. Ng2 {[%emt 0:01:51]} Rb7 {[%emt 0:00:24]} 57. Kf3 {[%emt 0:00:24]} Ra7 {[%emt 0:00:36]} 58. Bc5 {[%emt 0:00:48]} Ra5 {[%emt 0:00:14]} 59. Bb4 {[%emt 0:00:00]} Rf5+ {[%emt 0:00:00]} 60. Ke2 {[%emt 0:00:00]} Rb5 {[%emt 0:00:00]} 61. Re4 {[%emt 0:00:00]} Rb7 {[%emt 0:00:00]} 62. Nf4 {[%emt 0:00:00]} e5 {[%emt 0:00:00]} 63. Bxf8 {[%emt 0:00:00]} Kxf8 {[%emt 0:00:00]} 64. Ng2 {[%emt 0:00:00]} Ke7 {[%emt 0:00:00]} 65. Ne3 {[%emt 0:00:00]} Ke6 {[%emt 0:00:00]} 66. Ra4 {[%emt 0:00:00]} Kf7 {[%emt 0:00:00]} 67. Ra6 {[%emt 0:00:00]} Kg7 {[%emt 0:00:00]} 68. Kf3 {[%emt 0:00:00]} Kg6 {[%emt 0:00:00]} 69. Ra4 {[%emt 0:00:00]} Rb1 {[%emt 0:00:00]} 70. Rg4+ {[%emt 0:00:00]} Kf7 {[%emt 0:00:00]} 71. h4 {[%emt 0:00:00]} Ra1 {[%emt 0:00:00]} 72. Ke4 {[%emt 0:01:22]} Ra4+ {[%emt 0:04:53]} 73. Kf5 {[%emt 0:01:57]} Ra2 {[%emt 0:02:14]} 74. Rb4 {[%emt 0:01:32]} Rf2+ {[%emt 0:00:29]} 75. Kg4 {[%emt 0:00:06]} Rh2 {[%emt 0:01:51]} 76. h5 {[%emt 0:01:15]} Rh1 {[%emt 0:01:25]} 77. Rb7+ {[%emt 0:00:12]} Kg8 {[%emt 0:00:05]} 78. Nd5 {[%emt 0:01:08]} f5+ {[%emt 0:01:10]} 79. Kg5 {[%emt 0:01:03]} f4 {[%emt 0:02:01]} 80. Kf6 {[%emt 0:00:34]} h6 {[%emt 0:00:09]} 81. Ke6 {[%emt 0:00:18]} f3 {[%emt 0:01:53]} 82. Nf6+ {[%emt 0:00:07]} Kf8 {[%emt 0:00:02]} 83. Rf7# {[%emt 0:03:44]} 1-0

[Event "WWRR IM-Group 2024"]
[Site "Wachtebeke"]
[Date "2024.02.12"]
[Round "5.4"]
[White "Matnadze Bujiashvili, Ann"]
[Black "Ochs, Daniel Elias"]
[Result "1/2-1/2"]
[ECO "A90"]
[WhiteElo "2364"]
[BlackElo "2280"]
[Annotator "TA"]
[PlyCount "56"]
[EventDate "2024.02.12"]
[EventType "tourn"]
[EventCountry "BEL"]
[SourceTitle "playchess.com"]
[Source "ChessBase"]
[SourceQuality "1"]
[TimeControl "40/5400+30:900+30"]

{[%evp 16,56,31,20,44,45,33,20,29,-19,-18,-23,-15,-44,-12,-7,0,0,0,0,0,0,0,0,0,-27,0,-60,-35,-54,-57,-71,-34,-82,-96,-73,-43,-91,0,-75,0,-106,0]} 1. d4 {[%emt 0:00:04]} e6 {[%emt 0:00:03]} 2. c4 {[%emt 0:00:05]} f5 {[%emt 0:00:03]} 3. Nf3 {[%emt 0:00:05]} Nf6 {[%emt 0:00:04]} 4. g3 {[%emt 0:00:04]} d5 {[%emt 0:00:02]} 5. Bg2 {[%emt 0:00:04]} c6 {[%emt 0:00:01]} 6. O-O {[%emt 0:00:07]} Bd6 {[%emt 0:00:02]} 7. Bf4 {[%emt 0:00:09]} Bxf4 {[%emt 0:00:02]} 8. gxf4 {[%emt 0:00:04]} O-O {[%emt 0:00:04]} 9. Nbd2 {[%emt 0:00:18]} Qe7 {[%emt 0:00:03]} 10. Qb3 {[%emt 0:00:19]} Ne4 {[%emt 0:00:07]} 11. Qe3 {[%emt 0:00:36]} Nd7 {[%emt 0:00:04] The position is equal.} 12. Kh1 {[%emt 0:00:28]} (12. Rac1 {feels stronger.}) 12... b6 $11 {[%emt 0:07:25]} 13. Rac1 {[%emt 0:01:18]} Ba6 {[%emt 0:03:39]} 14. b3 {[%emt 0:04:35]} Rac8 {[%emt 0:06:47]} 15. Nxe4 {[%emt 0:18:09]} dxe4 {[%emt 0:08:25]} 16. Ne5 {[%emt 0:01:41]} Nxe5 {[%emt 0:00:27]} 17. dxe5 {[%emt 0:00:35]} c5 {[%emt 0:00:58]} 18. f3 {[%emt 0:01:02]} exf3 {[%emt 0:00:10]} 19. Qxf3 {[%emt 0:01:49]} Rfd8 {[%emt 0:02:16]} 20. Rcd1 {[%emt 0:02:16] Prevents Rd2.} Rc7 {[%emt 0:02:46]} 21. Rd3 {[%emt 0:12:36]} ({Better is} 21. e3 $11) 21... Bb7 {[%emt 0:02:36]} 22. Qg3 {[%emt 0:12:13]} Bxg2+ {[%emt 0:02:04]} 23. Qxg2 {[%emt 0:00:33]} Rcd7 {[%emt 0:01:34]} 24. Rff3 {[%emt 0:02:27]} (24. Rxd7 $15 Rxd7 25. e4) 24... Rxd3 $17 {[%emt 0:01:11]} 25. exd3 {[%emt 0:00:01]} Qh4 {[%emt 0:04:31]} 26. Qg3 {[%emt 0:09:23]} (26. Rg3 $15 {might be stronger.}) 26... Qe7 {[%emt 0:02:36]} 27. Qg2 {[%emt 0:02:16]} Qh4 {[%emt 0:01:01]} 28. Qg3 {[%emt 0:00:05]} Qe7 {[%emt 0:00:05] Weighted Error Value: White=0.18 (very precise) /Black=0.20 (precise) .  Mistake:       	White=4     	Black=1      Inaccurate:     	White=2     	Black=4      OK:         	White=3     	Black=3      Best:        	White=2     	Black=2} (28... Qxg3 $17 29. hxg3 h5) 1/2-1/2